{"text_format":"1","workbook":"xlsx","n_sheets":2,"sheets":["Pflege im OSW","Grunddaten"],"not_rendered":{"charts":0,"images":0,"macros":1,"external_links":0,"defined_names":27,"comments":2,"pivot_tables":0},"unopened":[],"bounds":{"document_bytes":16777216,"sheet_cells":100000,"rows_first":2000,"rows_last":500,"rows_between":2000,"halvings":0,"cell_chars":16384,"cell_head_chars":4096},"cells_cut":0,"cells_raw":0,"read":"whole","date_system":"1900"}

{"sheet":"Pflege im OSW","index":0,"n_rows":290,"n_cols":43,"rows_kept":290,"cut":false,"hidden":false,"merged":[[58,0,65,0],[56,1,57,22],[64,1,65,7],[62,1,63,7],[62,8,63,16],[148,22,149,26],[68,42,69,45],[64,42,65,45],[58,38,59,41],[60,19,61,20],[60,21,61,22],[60,23,61,25],[44,0,57,0],[66,0,76,0],[44,1,45,7],[44,8,45,16],[44,17,45,18],[44,26,45,29],[44,30,45,33],[62,21,63,22],[62,23,63,25],[145,7,149,18],[145,1,149,6],[44,23,45,25],[50,19,51,20],[44,21,45,22],[46,21,47,22],[48,21,49,22],[46,23,47,25],[150,27,151,45],[120,1,121,45],[146,30,147,34],[146,35,149,44],[143,31,144,44],[141,31,142,42],[106,34,107,45],[106,1,112,32],[113,21,114,32],[113,1,114,5],[113,11,114,15],[115,1,117,10],[115,11,117,20],[150,19,153,26],[141,1,143,10],[141,11,143,20],[48,30,49,33],[54,38,55,41],[152,27,153,45],[156,26,159,45],[160,26,161,29],[46,19,47,20],[48,19,49,20],[46,8,47,16],[46,17,47,18],[46,1,47,7],[48,1,49,7],[48,8,49,16],[48,17,49,18],[58,19,59,20],[58,21,59,22],[58,23,59,25],[58,26,59,29],[160,30,161,33],[160,34,161,37],[160,38,161,41],[160,42,161,45],[150,0,153,18],[113,34,114,42],[113,43,114,43],[120,0,121,0],[62,26,63,29],[131,0,132,0],[172,1,175,44],[162,26,164,29],[162,30,164,33],[162,34,164,37],[162,38,164,41],[162,42,164,45],[167,0,168,44],[170,0,171,0],[170,1,171,44],[165,0,165,45],[172,0,173,0],[176,0,177,0],[176,1,179,44],[200,0,201,6],[200,7,201,17],[202,0,203,6],[202,7,203,17],[183,0,184,45],[186,0,187,0],[186,1,187,45],[188,0,189,0],[188,1,189,45],[193,0,194,45],[196,0,197,6],[196,7,197,11],[198,0,199,6],[198,7,199,17],[139,11,140,15],[134,15,135,27],[134,1,135,14],[136,24,138,27],[136,1,138,10],[136,11,138,14],[136,15,138,23],[127,34,128,38],[138,31,140,44],[127,39,128,39],[126,21,128,32],[126,11,128,20],[131,31,132,44],[139,1,140,5],[104,1,105,32],[104,34,105,44],[100,34,101,42],[97,34,98,44],[95,1,96,32],[95,34,96,44],[99,1,101,10],[99,11,101,20],[99,21,101,32],[97,11,98,15],[97,21,98,26],[78,0,79,0],[72,42,73,45],[108,34,110,44],[78,1,79,45],[74,1,76,22],[74,42,76,45],[72,38,73,41],[72,8,73,22],[131,1,132,28],[126,1,128,10],[81,34,82,38],[81,40,82,44],[87,34,88,44],[84,1,92,32],[97,1,98,5],[81,1,82,29],[74,38,76,41],[72,34,73,37],[116,34,117,44],[95,0,96,0],[89,34,92,44],[83,34,85,39],[83,40,85,44],[104,0,105,0],[52,1,53,7],[74,23,76,25],[72,1,73,7],[54,1,55,7],[72,30,73,33],[62,19,63,20],[70,23,71,25],[70,30,71,33],[70,26,71,29],[60,1,61,7],[60,8,61,16],[60,17,61,18],[68,17,69,22],[68,23,69,25],[66,1,67,22],[64,17,65,18],[64,19,65,20],[64,21,65,22],[74,30,76,33],[58,1,59,7],[62,30,63,33],[52,23,53,25],[56,30,57,33],[56,23,57,25],[58,42,59,45],[60,42,61,45],[70,38,71,41],[70,1,71,22],[68,1,69,9],[68,10,69,10],[68,11,69,15],[68,16,69,16],[70,34,71,37],[62,34,63,37],[62,38,63,41],[62,42,63,45],[58,34,59,37],[64,23,65,25],[64,26,65,29],[64,30,65,33],[64,34,65,37],[60,34,61,37],[58,8,59,16],[60,38,61,41],[68,30,69,33],[66,34,67,37],[66,23,67,25],[60,26,61,29],[52,42,53,45],[54,34,55,37],[60,30,61,33],[42,8,43,16],[39,26,43,29],[50,21,51,22],[50,17,51,18],[44,34,45,37],[44,38,45,41],[46,30,47,33],[46,26,47,29],[48,26,49,29],[41,30,43,33],[41,34,43,37],[39,30,40,37],[39,23,43,25],[41,38,43,41],[48,34,49,37],[46,38,47,41],[52,26,53,29],[54,26,55,29],[52,30,53,33],[54,42,55,45],[58,17,59,18],[48,38,49,41],[50,26,51,29],[50,34,51,37],[39,38,40,45],[48,42,49,45],[40,1,41,10],[39,17,43,18],[39,21,43,22],[19,1,22,6],[23,1,26,6],[21,42,22,45],[19,26,22,38],[21,41,22,41],[25,42,26,45],[19,41,20,41],[23,41,24,41],[25,41,26,41],[23,26,26,38],[19,7,22,20],[19,22,22,25],[23,7,26,20],[50,30,51,33],[27,1,30,6],[48,23,49,25],[6,26,8,34],[6,35,8,37],[6,38,8,45],[9,17,10,25],[19,42,20,45],[29,41,30,41],[50,23,51,25],[23,22,26,25],[23,42,24,45],[50,42,51,45],[50,38,51,41],[39,19,43,20],[27,7,30,20],[35,17,37,23],[35,25,37,29],[33,1,34,45],[41,42,43,45],[35,30,37,37],[35,1,37,7],[35,8,37,8],[35,9,37,15],[35,16,37,16],[29,22,30,39],[44,19,45,20],[44,42,45,45],[42,1,43,7],[66,42,67,45],[0,19,3,26],[0,0,3,18],[0,27,1,45],[2,27,3,45],[5,0,5,45],[11,0,11,45],[15,0,15,45],[17,0,18,0],[17,1,18,45],[12,10,14,13],[12,34,14,45],[12,18,14,28],[12,29,14,33],[12,7,14,9],[12,14,14,17],[12,0,14,1],[12,2,14,6],[6,9,8,25],[9,0,10,15],[9,26,10,45],[52,34,53,37],[52,38,53,41],[68,38,69,41],[68,26,69,29],[68,34,69,37],[66,30,67,33],[66,26,67,29],[54,30,55,33],[56,26,57,29],[64,38,65,41],[64,8,65,16],[66,38,67,41],[56,38,57,41],[54,23,55,25],[72,23,73,25],[54,8,55,22],[62,17,63,18],[74,26,76,29],[56,34,57,37],[58,30,59,33],[204,0,205,20],[289,21,289,23],[154,0,155,45],[156,0,160,25],[161,0,164,25],[6,0,8,8],[46,34,47,37],[56,42,57,45],[70,42,71,45],[46,42,47,45],[50,1,51,7],[50,8,51,16],[100,43,101,43],[124,34,125,39],[115,21,117,32],[124,21,125,26],[122,1,123,45],[124,1,125,5],[33,0,34,0],[40,0,41,0],[124,11,125,15],[52,8,53,22],[72,26,73,29],[74,34,76,37]]}
["Amt für Wald\nund Naturgefahren",null,null,null,null,null,null,null,null,null,null,null,null,null,null,null,null,null,null,"Beilage 1a",null,null,null,null,null,null,null,"Pflege im OSW KS 6.1/7"]
[]
[null,null,null,null,null,null,null,null,null,null,null,null,null,null,null,null,null,null,null,null,null,null,null,null,null,null,null,"Version 22/1"]
[]
[]
[]
["Einfaches Projekt:",null,null,null,null,null,null,null,null,"Pflege im Objektschutzwald\n",null,null,null,null,null,null,null,null,null,null,null,null,null,null,null,null,null,null,null,null,null,null,null,null,null,"GIS-ID:"]
[]
[]
["Beitragsgesuch/-abrechnung",null,null,null,null,null,null,null,null,null,null,null,null,null,null,null,null,"Projektname (falls vorhanden):"]
[]
[]
["WA",null,null,null,null,null,null,"Revier ",null,null,null,null,null,null,"Gemeinde ",null,null,null,null,null,null,null,null,null,null,null,null,null,null,"Lokalname "]
[]
[]
[]
[]
[1,"Angaben über Trägerschaft"]
[]
[null,"Name / Vorname",null,null,null,null,null,null,null,null,null,null,null,null,null,null,null,null,null,null,null,null,"zu Handen",null,null,null,null,null,null,null,null,null,null,null,null,null,null,null,null,null,null,null,"  öffentlich"]
[]
[null,null,null,null,null,null,null,null,null,null,null,null,null,null,null,null,null,null,null,null,null,null,null,null,null,null,null,null,null,null,null,null,null,null,null,null,null,null,null,null,null,null,"   privat"]
[]
[null,"Strasse",null,null,null,null,null,null,null,null,null,null,null,null,null,null,null,null,null,null,null,null,"PLZ / Ort",null,null,null,null,null,null,null,null,null,null,null,null,null,null,null,null,null,null,null,"  SFB / TBA"]
[]
[null,null,null,null,null,null,null,null,null,null,null,null,null,null,null,null,null,null,null,null,null,null,null,null,null,null,null,null,null,null,null,null,null,null,null,null,null,null,null,null,null,null,"  Bund"]
[]
[null,"Postfach"]
[]
[null,null,null,null,null,null,null,null,null,null,null,null,null,null,null,null,null,null,null,null,null,null,"Einzahlungsschein der Trägerschaft liegt bei"]
[]
[]
[]
[2,"Lokalisierung der Flächen"]
[]
[null,"Mittelpunktkoordinaten ",null,null,null,null,null,null,"x",null,null,null,null,null,null,null,"y",null,null,null,null,null,null,null,null,"Höhe über Meer"]
[]
[]
[]
[null,null,null,null,null,null,null,null,null,null,null,null,null,null,null,null,null,"LbH\n in %",null,"WeZZ\nin % ",null,"WaZZ\nin %",null,"Einheit",null,null,"Pauschale\nCHF",null,null,null,"Voranschlag",null,null,null,null,null,null,null,"Abrechnung"]
[3,"Voranschlag / Abrechnung"]
[null,null,null,null,null,null,null,null,null,null,null,null,null,null,null,null,null,null,null,null,null,null,null,null,null,null,null,null,null,null,"Anzahl",null,null,null,"Beitrag",null,null,null,"Anzahl",null,null,null,"Beitrag"]
[null,"Grundpauschale",null,null,null,null,null,null,"Massnahme"]
[]
["L/S"," ",null,null,null,null,null,null,null,null,null,null,null,null,null,null,null,0,null,null,null,0,null,"ha",null,null,{"$f":"IF(I45=\"Pflanzungen inkl. WSVM + Austrichtern\",7800,(VLOOKUP(B45,Grunddaten!$A$4:$B$18,2,FALSE)+IF(R45=20,((VLOOKUP(B45,Grunddaten!$A$4:$C$18,3,FALSE))),)+IF(T45=20,((VLOOKUP(B45,Grunddaten!$A$4:$D$18,4,FALSE))),)+IF(V45=20,((VLOOKUP(B45,Grunddaten!$A$4:$E$18,5,FALSE))),)+IF(V45=40,((VLOOKUP(B45,Grunddaten!$A$4:$F$18,6,FALSE))),)))","v":0},null,null,null,null,null,null,null,{"$f":"ROUND(AE45*AA45*2,1)/2","v":0},null,null,null,null,null,null,null,{"$f":"ROUND(AA45*AM45*2,1)/2","v":0}]
[]
[null," ",null,null,null,null,null,null,null,null,null,null,null,null,null,null,null,0,null,0,null,0,null,"ha",null,null,{"$f":"IF(I47=\"Pflanzungen inkl. WSVM + Austrichtern\",7800,(VLOOKUP(B47,Grunddaten!$A$4:$B$18,2,FALSE)+IF(R47=20,((VLOOKUP(B47,Grunddaten!$A$4:$C$18,3,FALSE))),)+IF(T47=20,((VLOOKUP(B47,Grunddaten!$A$4:$D$18,4,FALSE))),)+IF(V47=20,((VLOOKUP(B47,Grunddaten!$A$4:$E$18,5,FALSE))),)+IF(V47=40,((VLOOKUP(B47,Grunddaten!$A$4:$F$18,6,FALSE))),)))","v":0},null,null,null,null,null,null,null,{"$f":"ROUND(AE47*AA47*2,1)/2","v":0},null,null,null,null,null,null,null,{"$f":"ROUND(AA47*AM47*2,1)/2","v":0}]
[]
[null," ",null,null,null,null,null,null,null,null,null,null,null,null,null,null,null,0,null,0,null,0,null,"ha",null,null,{"$f":"IF(I49=\"Pflanzungen inkl. WSVM + Austrichtern\",7800,(VLOOKUP(B49,Grunddaten!$A$4:$B$18,2,FALSE)+IF(R49=20,((VLOOKUP(B49,Grunddaten!$A$4:$C$18,3,FALSE))),)+IF(T49=20,((VLOOKUP(B49,Grunddaten!$A$4:$D$18,4,FALSE))),)+IF(V49=20,((VLOOKUP(B49,Grunddaten!$A$4:$E$18,5,FALSE))),)+IF(V49=40,((VLOOKUP(B49,Grunddaten!$A$4:$F$18,6,FALSE))),)))","v":0},null,null,null,null,null,null,null,{"$f":"ROUND(AE49*AA49*2,1)/2","v":0},null,null,null,null,null,null,null,{"$f":"ROUND(AA49*AM49*2,1)/2","v":0}]
[]
[null," ",null,null,null,null,null,null,null,null,null,null,null,null,null,null,null,0,null,0,null,0,null,"ha",null,null,{"$f":"IF(I51=\"Pflanzungen inkl. WSVM + Austrichtern\",7800,(VLOOKUP(B51,Grunddaten!$A$4:$B$18,2,FALSE)+IF(R51=20,((VLOOKUP(B51,Grunddaten!$A$4:$C$18,3,FALSE))),)+IF(T51=20,((VLOOKUP(B51,Grunddaten!$A$4:$D$18,4,FALSE))),)+IF(V51=20,((VLOOKUP(B51,Grunddaten!$A$4:$E$18,5,FALSE))),)+IF(V51=40,((VLOOKUP(B51,Grunddaten!$A$4:$F$18,6,FALSE))),)))","v":0},null,null,null,null,null,null,null,{"$f":"ROUND(AE51*AA51*2,1)/2","v":0},null,null,null,null,null,null,null,{"$f":"ROUND(AA51*AM51*2,1)/2","v":0}]
[]
[null,"Begehungswege",null,null,null,null,null,null,"Neubau",null,null,null,null,null,null,null,null,null,null,null,null,null,null,"m'",null,null,12,null,null,null,null,null,null,null,{"$f":"ROUND(AE53*AA53*2,1)/2","v":0},null,null,null,null,null,null,null,{"$f":"ROUND(AA53*AM53*2,1)/2","v":0}]
[]
[null,"Begehungswege",null,null,null,null,null,null,"Unterhalt",null,null,null,null,null,null,null,null,null,null,null,null,null,null,"m'",null,null,3,null,null,null,null,null,null,null,{"$f":"ROUND(AE55*AA55*2,1)/2","v":0},null,null,null,null,null,null,null,{"$f":"ROUND(AA55*AM55*2,1)/2","v":0}]
[]
[null,"Dreibeinböcke",null,null,null,null,null,null,null,null,null,null,null,null,null,null,null,null,null,null,null,null,null,"Stk.",null,null,235,null,null,null,null,null,null,null,{"$f":"ROUND(AE57*AA57*2,1)/2","v":0},null,null,null,null,null,null,null,{"$f":"ROUND(AA57*AM57*2,1)/2","v":0}]
[]
["H/R"," ",null,null,null,null,null,null,null,null,null,null,null,null,null,null,null,null,null,null,null,null,null,"ha",null,null,{"$f":"IF(I59=\"Pflanzungen inkl. WSVM + Austrichtern\",7800,VLOOKUP(B59,Grunddaten!$A$36:$B$40,2,FALSE))","v":0},null,null,null,null,null,null,null,{"$f":"ROUND(AE59*AA59*2,1)/2","v":0},null,null,null,null,null,null,null,{"$f":"ROUND(AA59*AM59*2,1)/2","v":0}]
[]
[null," ",null,null,null,null,null,null,null,null,null,null,null,null,null,null,null,null,null,null,null,null,null,"ha",null,null,{"$f":"IF(I61=\"Pflanzungen inkl. WSVM + Austrichtern\",7800,VLOOKUP(B61,Grunddaten!$A$36:$B$40,2,FALSE))","v":0},null,null,null,null,null,null,null,{"$f":"ROUND(AE61*AA61*2,1)/2","v":0},null,null,null,null,null,null,null,{"$f":"ROUND(AA61*AM61*2,1)/2","v":0}]
[]
[null," ",null,null,null,null,null,null,null,null,null,null,null,null,null,null,null,null,null,null,null,null,null,"ha",null,null,{"$f":"IF(I63=\"Pflanzungen inkl. WSVM + Austrichternn\",7800,VLOOKUP(B63,Grunddaten!$A$36:$B$40,2,FALSE))","v":0},null,null,null,null,null,null,null,{"$f":"ROUND(AE63*AA63*2,1)/2","v":0},null,null,null,null,null,null,null,{"$f":"ROUND(AA63*AM63*2,1)/2","v":0}]
[]
[null,"Grundpauschale_E",null,null,null,null,null,null,"Einzelbäume",null,null,null,null,null,null,null,null,null,null,null,null,null,null,"Stk.",null,null,35,null,null,null,null,null,null,null,{"$f":"ROUND(AE65*AA65*2,1)/2","v":0},null,null,null,null,null,null,null,{"$f":"ROUND(AA65*AM65*2,1)/2","v":0}]
[]
["Weiteres","Sicherheitsholzerei",null,null,null,null,null,null,null,null,null,null,null,null,null,null,null,null,null,null,null,null,null,null,null,null,null,null,null,null,null,null,null,null,{"$f":"ROUND(AE67*AA67*2,1)/2","v":0},null,null,null,null,null,null,null,{"$f":"ROUND(AA67*AM67*2,1)/2","v":0}]
[]
[null,"Aktive Wildschadenverhütung",null,null,null,null,null,null,null,null,"o","Ersteingriff",null,null,null,null,"o","Folgeeingriff",null,null,null,null,null,"ha",null,null,null,null,null,null,null,null,null,null,{"$f":"ROUND(AE69*AA69*2,1)/2","v":0},null,null,null,null,null,null,null,{"$f":"ROUND(AA69*AM69*2,1)/2","v":0}]
[]
[null,"Passive Wildschadenverhütung",null,null,null,null,null,null,null,null,null,null,null,null,null,null,null,null,null,null,null,null,null,"ha",null,null,null,null,null,null,null,null,null,null,{"$f":"ROUND(AE71*AA71*2,1)/2","v":0},null,null,null,null,null,null,null,{"$f":"ROUND(AA71*AM71*2,1)/2","v":0}]
[]
[null,"Weiserfläche",null,null,null,null,null,null,"bitte auswählen",null,null,null,null,null,null,null,null,null,null,null,null,null,null,"Stk.",null,null,{"$f":"VLOOKUP(I73,Grunddaten!$A$53:$B$56,2,FALSE)","v":0},null,null,null,null,null,null,null,{"$f":"ROUND(AE73*AA73*2,1)/2","v":0},null,null,null,null,null,null,null,{"$f":"ROUND(AA73*AM73*2,1)/2","v":0}]
[]
[null,null,null,null,null,null,null,null,null,null,null,null,null,null,null,null,null,null,null,null,null,null,null,"ha",null,null,null,null,null,null,{"$f":"SUM(AE45:AH52)+SUM(AE59:AH64)+SUM(AE69:AH72)","v":0},null,null,null,{"$f":"SUM(AI45:AL74)","v":0},null,null,null,{"$f":"SUM(AM45:AP52)+ SUM(AM59:AP64)+SUM(AM69:AP72)","v":0},null,null,null,{"$f":"SUM(AQ45:AT74)","v":0}]
[]
[]
[]
[4,"Trägerschaft: Eingabe des Gesuchs und generelle Bedingungen für die Ausrichtung der Beiträge"]
[]
[]
[null,"Die Trägerschaft beantragt die Subventionierung der projektierten Arbeiten gemäss Ziffer 3",null,null,null,null,null,null,null,null,null,null,null,null,null,null,null,null,null,null,null,null,null,null,null,null,null,null,null,null,null,null,null,null,"Ort",null,null,null,null,null,"Datum"]
[]
[]
[null,"1. Die Weisungen des AWN müssen befolgt werden.\n2. Die Massnahmen müssen fachgerecht ausgeführt werden;  es muss fachkundiges Personal eingesetzt werden.\n3. Die Zielsetzung darf durch nachteilige Nutzung (Waldweide usw.) und überhöhte Wildbestände nicht gefährdet werden. \n4. Die Richtlinien und Sicherheitsbestimmungen von SUVA, EKAS und BAZL sind einzuhalten.\n5. Einverständnis Waldbesitzer / sicherheitsverwantwortliche Stelle oder Publikation."]
[]
[]
[null,null,null,null,null,null,null,null,null,null,null,null,null,null,null,null,null,null,null,null,null,null,null,null,null,null,null,null,null,null,null,null,null,null,"Die Trägerschaft"]
[]
[]
[]
[]
[]
[]
[]
[5,"Der Revierförster",null,null,null,null,null,null,null,null,null,null,null,null,null,null,null,null,null,null,null,null,null,null,null,null,null,null,null,null,null,null,null,null,"Ausführung geplant bis:"]
[]
[null,"Ort",null,null,null,null,null,null,null,null,null,"Datum",null,null,null,null,null,null,null,null,null,"Der Revierförster"]
[]
[]
[null,null,null,null,null,null,null,null,null,null,null,null,null,null,null,null,null,null,null,null,null,null,null,null,null,null,null,null,null,null,null,null,null,null,"Bemerkungen siehe Beilage"]
[]
[]
[]
[6,"Zustimmung des Gesuchs durch die Waldabteilung (Original an Revierförster)",null,null,null,null,null,null,null,null,null,null,null,null,null,null,null,null,null,null,null,null,null,null,null,null,null,null,null,null,null,null,null,null,"Datum"]
[]
[null,"Die Zustimmung zum Gesuch stellt keine Beitragszusicherung dar. Diese erfolgt erst durch die Genehmigung der\nAbrechnung und der Ausgabenbewilligung. Die Auszahlung der Beiträge erfolgt nach Massgabe der zur Verfügung\nstehenden Kredite. Falls der Voranschlag höher als Fr. 100'000.-- ausfällt, ist die Zustimmung des AV einzuholen.",null,null,null,null,null,null,null,null,null,null,null,null,null,null,null,null,null,null,null,null,null,null,null,null,null,null,null,null,null,null,null,null,"Gesuch gültig bis: (max. Ende 2024)"]
[]
[]
[]
[]
[]
[]
[null,"Ort",null,null,null,null,null,null,null,null,null,"Datum",null,null,null,null,null,null,null,null,null,"Die Waldabteilung / Der Amtsvorsteher",null,null,null,null,null,null,null,null,null,null,null,null,"Bemerkungen siehe Beilage"]
[]
[]
[null,null,null,null,null,null,null,null,null,null,null,null,null,null,null,null,null,null,null,null,null,null,null,null,null,null,null,null,null,null,null,null,null,null,"Fachvisum"]
[]
[]
[]
[7,"Ausführungsbestätigung des Revierförsters"]
[]
[null,"Die Arbeiten sind fachgerecht ausgeführt und die  Beitragsberechtigung wird anerkannt und die Ausmasse gemäss Ziffer 3, Spalte Abrechnung, bestätigt."]
[]
[null,"Ort",null,null,null,null,null,null,null,null,null,"Datum",null,null,null,null,null,null,null,null,null,"Der Revierförster",null,null,null,null,null,null,null,null,null,null,null,null,"Bemerkungen"]
[]
[]
[null,null,null,null,null,null,null,null,null,null,null,null,null,null,null,null,null,null,null,null,null,null,null,null,null,null,null,null,null,null,null,null,null,null,"siehe Beilage"]
[]
[]
[]
[8,"Genehmigung der Abrechnung und Ausgabenbewilligung",null,null,null,null,null,null,null,null,null,null,null,null,null,null,null,null,null,null,null,null,null,null,null,null,null,null,null,null,null,"Fachvisum"]
[]
[]
[null,"Beitragsberechtigte Fläche für NFA-PV",null,null,null,null,null,null,null,null,null,null,null,null,null,"Kantonsbeitrag"]
[]
[null,{"$f":"AM75","v":0},null,null,null,null,null,null,null,null,null,"ha",null,null,null,{"$f":"AQ75","v":0},null,null,null,null,null,null,null,null,"CHF"]
[]
[]
[null,"Ort",null,null,null,null,null,null,null,null,null,"Datum"]
[]
[null,null,null,null,null,null,null,null,null,null,null,null,null,null,null,null,null,null,null,null,null,null,null,null,null,null,null,null,null,null,null,"Die Waldabteilung / Die Amtsleitung"]
[]
[null,null,null,null,null,null,null,null,null,null,null,null,null,null,null,null,null,null,null,null,null,null,null,null,null,null,null,null,null,null,null,"(Unterschrift der Amtsleitung, falls höher als Fr. 100'000.--)"]
[]
[null,"Beilagen für AFR:\n- Einzahlungsschein\n- NaiS-Formular ",null,null,null,null,null," - Beilage zum Einfachen Projekt\n - im Hangmurenschutzwald: Beilage 6"]
[null,null,null,null,null,null,null,null,null,null,null,null,null,null,null,null,null,null,null,null,null,null,null,null,null,null,null,null,null,null,"Kopie WA an: ",null,null,null,null,"- Trägerschaft\n- Revierförster"]
[]
[null,null,null,null,null,null,null,null,null,null,null,null,null,null,null,null,null,null,null,null,null,null,"Seite 1"]
[]
["Amt für Wald\nund Naturgefahren"]
[]
[null,null,null,null,null,null,null,null,null,null,null,null,null,null,null,null,null,null,null,null,null,null,null,null,null,null,null,"Version 22/1"]
[]
[]
[]
["Einfaches Projekt: "]
[]
[]
[]
[]
["Beitragsgesuch/-abrechnung"]
[]
[]
[]
[]
[]
["Rechtsgrundlagen"]
[]
[]
["\u009f","Kantonales Waldgesetz vom 5. Mai 1997 (KWaG), Art. 9, 12, 14, 15 und 32 ff"]
[]
["\u009f","Gesetz vom 26. März 2002 über die Steuerung von Finanzen und Leistungen (FLG),\nArt. 46, Art. 48 Abs. 1 Bst. a, Art. 49, Art. 50, Art. 52"]
[]
[]
[]
["\u009f","Verordnung vom 3. Dezember 2003 über die Steuerung von Finanzen und Leistungen (FLV),\nArt. 148 und 152"]
[]
[]
[]
[]
[]
[]
["Kredit- und Ausgabenart, rechtliche Qualifikation"]
[]
[]
["\u009f","Verpflichtungskredit in Form eines Objektkredites"]
[]
["\u009f","Einmalige und neue Ausgabe (FLG, Art. 46 und Art. 48 Abs. 1 Bst. a) "]
[]
[]
[]
[]
["Rechnungsjahr und Konto"]
[]
[]
["Rechnungsjahr"]
[]
["Konto",null,null,null,null,null,null,"363200/363500"]
[]
["Teilprodukt",null,null,null,null,null,null,910001400]
[]
["Funktionsbereich",null,null,null,null,null,null,"20066 AFR und Waldabteilungen"]
[]
["Der Betrag ist im Voranschlag eingestellt."]
[]
[]
[]
[]
[]
[]
[]
[]
[]
[]
[]
[]
[]
[]
[]
[]
[]
[]
[]
[]
[]
[]
[]
[]
[]
[]
[]
[]
[]
[]
[]
[]
[]
[]
[]
[]
[]
[]
[]
[]
[]
[]
[]
[]
[]
[]
[]
[]
[]
[]
[]
[]
[]
[]
[]
[]
[]
[]
[]
[]
[]
[]
[]
[]
[]
[]
[]
[]
[]
[]
[]
[]
[]
[]
[]
[]
[]
[]
[]
[]
[]
[]
[]
[]
[null,null,null,null,null,null,null,null,null,null,null,null,null,null,null,null,null,null,null,null,null,"Seite 2"]

{"sheet":"Grunddaten","index":1,"n_rows":56,"n_cols":13,"rows_kept":56,"cut":false,"hidden":true,"merged":[]}
["Pflege im OSW - Massnahmengruppen und Pauschalen"]
[]
["Grundpauschalen / Massnahmen Lawine und Steinschlag"]
["Grundpauschale","CHF","LbH","WeZZ","WaZZ","WaZZ"]
[" ",0,0,0,0,0]
["Grundpauschale_A0",2000,0,400,0,0]
["Grundpauschale_A10",2200,0,400,0,0]
["Grundpauschale_A20",2400,0,400,0,0]
["Grundpauschale_B0",4000,0,800,0,0]
["Grundpauschale_B10",4400,0,800,0,0]
["Grundpauschale_B20",4800,0,800,0,0]
["Grundpauschale_C0",10000,2000,2000,2000,4000]
["Grundpauschale_C10",11000,2000,2000,2000,4000]
["Grundpauschale_C20",12000,2000,2000,2000,4000]
["Grundpauschale_D0",15000,3000,3000,3000,6000]
["Grundpauschale_D10",16500,3000,3000,3000,6000]
["Grundpauschale_D20",18000,3000,3000,3000,6000]
[]
[]
["LbH","WeZZ","WaZZ"]
[0,0,0]
[20,20,20]
[null,null,40]
[]
["Grundpauschale_A0","Grundpauschale_A10","Grundpauschale_A20","Grundpauschale_B0","Grundpauschale_B10","Grundpauschale_B20","Grundpauschale_C0","Grundpauschale_C10","Grundpauschale_C20","Grundpauschale_D0","Grundpauschale_D10","Grundpauschale_D20"," "]
[]
["Austrichtern","Austrichtern","Austrichtern","Dickungspflege","Dickungspflege","Dickungspflege","Holzerei ohne Verwertung","Holzerei ohne Verwertung","Holzerei ohne Verwertung","Holzerei/angeord. Bringung","Holzerei/angeord. Bringung","Holzerei/angeord. Bringung"]
["Jungwuchspflege","Jungwuchspflege","Jungwuchspflege","Stangenholz bis BHD dom 30 cm","Stangenholz bis BHD dom 30 cm","Stangenholz bis BHD dom 30 cm","Holzerei mit Verwertung","Holzerei mit Verwertung","Holzerei mit Verwertung","Holzerei/angeord. Querbäumen","Holzerei/angeord. Querbäumen","Holzerei/angeord. Querbäumen"]
["Stumpen (einmalig)","Stumpen (einmalig)","Stumpen (einmalig)","Pflege stufiger Bestände","Pflege stufiger Bestände","Pflege stufiger Bestände"]
["Ringeln (einmalig)","Ringeln (einmalig)","Ringeln (einmalig)","Rottenpflege","Rottenpflege","Rottenpflege"]
[null,null,null,"Pflanzungen inkl. WSVM + Austrichtern","Pflanzungen inkl. WSVM + Austrichtern","Pflanzungen inkl. WSVM + Austrichtern"]
[]
[]
["Grundpauschalen / Massnahmen Rutschung und Hangmuren"]
["Grundpauschale","CHF"]
[" ",0]
["Grundpauschale_A",2000]
["Grundpauschale_B1",2500]
["Grundpauschale_B2",3000]
["Grundpauschale_F",10000]
[]
["Grundpauschale_A","Grundpauschale_B1","Grundpauschale_B2","Grundpauschale_F"]
[]
["Austrichtern","Dickungspflege","Stangenholz bis BHD dom 30 cm","Holzerei mit Verwertung"]
["Jungwuchspflege",null,"Pflege stufiger Bestände","Holzerei ohne Verwertung"]
["Stumpen (einmalig)",null,"Rottenpflege"]
["Ringeln (einmalig)",null,"Pflanzungen inkl. WSVM + Austrichtern"]
["Schlagpflege (max. 50 % der Schlagfläche)"]
[]
[]
[]
["Weiteres"]
["Weiserflächen","CHF"]
["bitte auswählen",0]
["Erstaufnahme",1200]
["Folgeaufnahme",600]